fUST/lending_fUST_20260414
["ID","MTS","AMOUNT","RATE_DAILY","PERIOD"]
[420481517,1776144633201,-430.10416593,7.782e-05,2]
[420481518,1776144633211,-500.67510818,8.02e-05,2]
[420481519,1776144633220,-196.4229743,8.031e-05,2]
[420481520,1776144633231,-1685.83961183,8.038e-05,7]
[420481521,1776144633240,-173.8711502,8.083e-05,2]
[420481522,1776144633250,-173.8711502,8.084e-05,2]
[420481523,1776144633259,-483.29722761,8.147e-05,2]
[420481524,1776144633269,-1931.25572152,8.147e-05,2]
[420481525,1776144633278,-1485.06821527,8.252e-05,2]
[420481589,1776144638735,-307.97201773,8.252e-05,2]
[420481590,1776144638745,-1062.0,8.4e-05,2]
[420481591,1776144638787,-287.0,8.451e-05,2]
[420481592,1776144638804,-420.0,8.451e-05,2]
[420481593,1776144638846,-1680.0,8.451e-05,2]
[420481595,1776144638882,-537.6845,8.452e-05,2]
[420481597,1776144638898,-2150.738,8.452e-05,2]
[420481598,1776144638924,-1243.35725262,8.478e-05,2]
[420481601,1776144638943,-255.94481848,8.478e-05,2]
[420481602,1776144638972,-500.0,8.503e-05,2]
[420481604,1776144638994,-557.5788265,8.507e-05,2]
[420481606,1776144639009,-506.53456384,8.522e-05,2]
[420481607,1776144639040,-521.07221786,8.522e-05,2]
[420481608,1776144639059,-529.82839521,8.522e-05,2]
[420481609,1776144639075,-521.07221786,8.522e-05,2]
[420481610,1776144639102,-521.07221786,8.522e-05,2]
[420481611,1776144639130,-521.07221786,8.522e-05,2]
[420481612,1776144639144,-521.07221786,8.522e-05,2]
[420481613,1776144639159,-521.07221786,8.522e-05,2]
[420481614,1776144639192,-521.07221786,8.522e-05,2]
[420481615,1776144639220,-500.0,8.522e-05,2]
[420481616,1776144639237,-500.0,8.522e-05,2]
[420481617,1776144639248,-500.0,8.522e-05,2]
[420481618,1776144639279,-500.0,8.522e-05,2]
[420481619,1776144639289,-500.0,8.522e-05,2]
[420481620,1776144639302,-500.0,8.522e-05,2]
[420481621,1776144639328,-521.07221786,8.522e-05,2]
[420481622,1776144639339,-500.0,8.522e-05,2]
[420481623,1776144639354,-500.0,8.522e-05,2]
[420481624,1776144639376,-521.07221786,8.522e-05,2]
[420481625,1776144639390,-500.0,8.522e-05,2]
[420481626,1776144639413,-500.0,8.522e-05,2]
[420481627,1776144639423,-500.0,8.522e-05,2]
[420481628,1776144639456,-500.0,8.522e-05,2]
[420481629,1776144639468,-500.0,8.522e-05,2]
[420481630,1776144639492,-500.0,8.522e-05,2]
[420481631,1776144639504,-500.0,8.522e-05,2]
[420481632,1776144639514,-500.0,8.522e-05,2]
[420481633,1776144639541,-500.0,8.522e-05,2]
[420481634,1776144639556,-500.0,8.522e-05,2]
[420481635,1776144639580,-500.0,8.522e-05,2]
[420481636,1776144639590,-188.44271626,8.522e-05,2]
[420481637,1776144639602,-500.0,8.522e-05,2]
[420481638,1776144639622,-500.0,8.522e-05,2]
[420481639,1776144639632,-500.0,8.522e-05,2]
[420481640,1776144639644,-500.0,8.522e-05,2]
[420481641,1776144639658,-500.0,8.522e-05,2]
[420481642,1776144639671,-521.07221787,8.522e-05,2]
[420481643,1776144639681,-521.07221787,8.522e-05,2]
[420481644,1776144639703,-521.07221787,8.522e-05,2]
[420481645,1776144639715,-521.07221787,8.522e-05,2]
[420481646,1776144639731,-521.07221787,8.522e-05,2]
[420481647,1776144639745,-521.07221787,8.522e-05,2]
[420481648,1776144639757,-521.07221787,8.522e-05,2]
[420481649,1776144639772,-521.07221787,8.522e-05,2]
[420481650,1776144639784,-521.07221787,8.522e-05,2]
[420481651,1776144639804,-573.17943965,8.522e-05,2]
[420481652,1776144639824,-573.17943965,8.522e-05,2]
[420481653,1776144639840,-573.17943965,8.522e-05,2]
[420481654,1776144639857,-573.17943965,8.522e-05,2]
[420481655,1776144639871,-573.17943965,8.522e-05,2]
[420481656,1776144639890,-448346.64290953,8.523e-05,2]
[420481659,1776144640777,-4052.64258996,8.169e-05,2]
[420481669,1776144646825,-947.35741004,8.169e-05,2]
[420481670,1776144646837,-97385.76551316,8.523e-05,2]
[420481671,1776144646868,-36127.4505039,8.523e-05,2]
[420481672,1776144646882,-14831.85903219,8.523e-05,2]
[420481673,1776144646897,-540.92371165,8.523e-05,2]
[420481674,1776144646913,-300.0,8.523e-05,2]
[420481675,1776144646927,-7555.21288691,8.523e-05,2]
[420481676,1776144648245,-5505.64446332,8.523e-05,2]
[420481677,1776144648258,-4895.9349,8.523e-05,2]
[420481678,1776144648432,-20000.0,8.523e-05,2]
[420481682,1776144683837,-589.0,8.438e-05,2]
[420481683,1776144683850,-4411.0,8.438e-05,2]
[420481684,1776144683867,-500.0,8.503e-05,2]
[420481685,1776144683879,-89.0,8.522e-05,2]
[420481830,1776145226771,880.0,9e-05,30]
[420481874,1776145561050,5098.13837329,7.625e-05,30]
[420481875,1776145561873,5098.13837329,7.703e-05,30]
[420483706,1776145809894,666.0,9e-05,30]
[420483750,1776145833719,-524.0,7.396e-05,2]
[420483751,1776145833746,-4084.03722137,7.397e-05,2]
[420483752,1776145833798,-915.96277863,7.397e-05,2]
[420483753,1776145833827,-429.12208261,7.434e-05,2]
[420483754,1776145833848,-1200.0,7.471e-05,2]
[420483755,1776145833876,-300.0,7.471e-05,2]
[420483756,1776145833890,-4983.94390009,7.472e-05,2]
[420483774,1776145838832,-16.05609991,7.472e-05,2]
[420483775,1776145838859,-5098.13837329,7.548e-05,2]
[420483776,1776145838870,-5098.13837329,7.549e-05,2]
[420483777,1776145838888,-17498.44619345,7.6e-05,2]
[420483778,1776145838906,-309.27312681,7.74e-05,2]
[420483779,1776145838919,-2208.81616201,8.038e-05,7]
[420483780,1776145838936,-716.48183503,8.147e-05,2]
[420483781,1776145838951,-2863.06141278,8.147e-05,2]
[420483782,1776145838961,-420.0,8.218e-05,2]
[420483783,1776145838974,-1024.0,8.218e-05,2]
[420483784,1776145838984,-1398.62427176,8.3e-05,2]
[420483785,1776145838993,-3188.51504903,8.3e-05,2]
[420483786,1776145839003,-173.69116146,8.3e-05,2]
[420483787,1776145839019,-585.36654543,8.3e-05,2]
[420483788,1776145839035,-3077.86681113,8.3e-05,2]
[420483790,1776145839046,-3404.07062105,8.3e-05,2]
[420483791,1776145839055,-500.0,8.421e-05,2]
[420483792,1776145839066,-537.6845,8.422e-05,2]
[420483793,1776145839080,-2150.738,8.422e-05,2]
[420483794,1776145839089,-504.26870507,8.453e-05,2]
[420483795,1776145839101,-425.83039637,8.476e-05,2]
[420483796,1776145839111,-500.0,8.476e-05,2]
[420483797,1776145839126,-500.0,8.476e-05,2]
[420483798,1776145839136,-500.0,8.476e-05,2]
[420483799,1776145839154,-500.0,8.476e-05,2]
[420483800,1776145839166,-500.0,8.476e-05,2]
[420483801,1776145839176,-1700000.0,8.477e-05,2]
[420483802,1776145839196,-151.0,8.477e-05,2]
[420483803,1776145839208,-557.5788265,8.477e-05,2]
[420483804,1776145839219,-151.0,8.478e-05,2]
[420483805,1776145839233,-432658.98414857,8.478e-05,2]
[420483806,1776145839257,-945303.53720507,8.478e-05,2]
[420483807,1776145839275,-17660.93949422,8.478e-05,2]
[420483808,1776145839299,-339.25488176,8.478e-05,2]
[420483819,1776145841045,-539.0,8.478e-05,2]
[420483820,1776145841061,-1145.90452827,8.478e-05,2]
[420483856,1776145843729,-7984.61168415,8.478e-05,2]
[420483857,1776145843741,-994906.76805796,8.478e-05,2]
[420483858,1776145843755,-500.0,8.523e-05,2]
[420483859,1776145843765,-578.20924308,8.532e-05,2]
[420483860,1776145843775,-188.94335098,8.541e-05,2]
[420483861,1776145843784,-380.335,8.541e-05,2]
[420483862,1776145843796,-3736.05198099,8.545e-05,2]
[420483863,1776145843806,-300.0,8.545e-05,2]
[420483864,1776145843817,-300.0,8.545e-05,2]
[420483865,1776145843827,-300.0,8.545e-05,2]
[420483866,1776145843839,-300.0,8.545e-05,2]
[420483867,1776145843855,-300.0,8.545e-05,2]
[420483868,1776145843867,-300.0,8.545e-05,2]
[420483869,1776145843877,-300.0,8.545e-05,2]
[420483870,1776145843890,-300.0,8.545e-05,2]
[420483871,1776145843908,-300.0,8.545e-05,2]
[420483872,1776145843918,-300.0,8.545e-05,2]
[420483873,1776145843934,-300.0,8.545e-05,2]
[420483874,1776145843959,-300.0,8.545e-05,2]
[420483875,1776145843984,-300.0,8.545e-05,2]
[420483876,1776145844004,-300.0,8.545e-05,2]
[420483877,1776145844017,-300.0,8.545e-05,2]
[420483878,1776145844034,-540.89184108,8.572e-05,2]
[420483879,1776145844048,-156.587,8.572e-05,2]
[420483880,1776145844070,-402.750764,8.575e-05,2]
[420483881,1776145844080,-939.68655541,8.576e-05,2]
[420483882,1776145844090,-3758.74622165,8.576e-05,2]
[420483883,1776145844108,-877.20120117,8.576e-05,2]
[420483884,1776145844126,-3505.29599988,8.576e-05,2]
[420483885,1776145844136,-253.7571693,8.576e-05,2]
[420483886,1776145844147,-1014.01364851,8.576e-05,2]
[420483887,1776145844163,-187.42154685,8.576e-05,2]
[420483889,1776145844185,-599.60298507,8.587e-05,2]
[420483891,1776145844195,-1793.040233,8.599e-05,2]
[420483893,1776145844205,-442.78041185,8.642e-05,2]
[420483895,1776145844218,-600.0,8.851e-05,2]
[420483897,1776145844249,-402.75076399,8.931e-05,2]
[420483899,1776145844263,-1793.040233,8.946e-05,2]
[420483901,1776145844305,-500.0,8.968e-05,2]
[420483903,1776145844328,-151.0,8.97e-05,2]
[420483906,1776145844349,-2230.315306,8.97e-05,2]
[420483908,1776145844399,-500.0,9e-05,2]
[420483909,1776145844417,-587.0,9.04e-05,2]
[420483912,1776145844446,-597.95306065,9.071e-05,2]
[420483914,1776145844479,-6408.11936503,9.1e-05,2]
[420483915,1776145844488,-151.591017,9.1e-05,2]
[420483917,1776145844498,-156.57307001,9.106e-05,2]
[420483919,1776145844522,-9300.0,9.12e-05,2]
[420483921,1776145844549,-5000.0,9.12e-05,2]
[420483923,1776145844559,-5000.0,9.12e-05,2]
[420483925,1776145844572,-172.0,9.132e-05,2]
[420483928,1776145844596,-648.0,9.132e-05,2]
[420483930,1776145844606,-648.0,9.132e-05,2]
[420483932,1776145844620,-166.0,9.132e-05,2]
[420483933,1776145844639,-340.0,9.132e-05,2]
[420483935,1776145844693,-648.0,9.132e-05,2]
[420483936,1776145844713,-166.0,9.132e-05,2]
[420483937,1776145844723,-340.0,9.132e-05,2]
[420483938,1776145844741,-648.0,9.132e-05,2]
[420483939,1776145844751,-166.0,9.132e-05,2]
[420483940,1776145844761,-340.0,9.132e-05,2]
[420483941,1776145844773,-648.0,9.132e-05,2]
[420483942,1776145844782,-340.0,9.132e-05,2]
[420483943,1776145844794,-648.0,9.132e-05,2]
[420483944,1776145844803,-648.0,9.132e-05,2]
[420483945,1776145844816,-648.0,9.132e-05,2]
[420483946,1776145844831,-648.0,9.132e-05,2]
[420483947,1776145844842,-648.0,9.132e-05,2]
[420483948,1776145844867,-340.0,9.132e-05,2]
[420483949,1776145844877,-648.0,9.132e-05,2]
[420483950,1776145844894,-340.0,9.132e-05,2]
[420483951,1776145844909,-648.0,9.132e-05,2]
[420483952,1776145844917,-361.71427535,9.132e-05,2]
[420483953,1776145844933,-648.0,9.132e-05,2]
[420483954,1776145844949,-648.0,9.132e-05,2]
[420483955,1776145844959,-648.0,9.132e-05,2]
[420483956,1776145844984,-179.48304583,9.132e-05,2]
[420483957,1776145844995,-164.0,9.132e-05,2]
[420483958,1776145845006,-192.19530194,9.132e-05,2]
[420483959,1776145845027,-500.0,9.2e-05,2]
[420483960,1776145845037,-402.75076399,9.288e-05,2]
[420483961,1776145845047,-1793.040233,9.294e-05,2]
[420483962,1776145845066,-500.0,9.3e-05,2]
[420483963,1776145845082,-625.66598776,9.393e-05,2]
[420483964,1776145845094,-151.0,9.399e-05,2]
[420483965,1776145845128,-506.36405748,9.434e-05,2]
[420483966,1776145845145,-800.0,9.484e-05,2]
[420483967,1776145845163,-800.0,9.496e-05,2]
[420483968,1776145845204,-500.0,9.5e-05,2]
[420483969,1776145845222,-2312.83697232,9.518e-05,2]
[420483970,1776145845237,-800.0,9.546e-05,2]
[420483971,1776145845253,-256.46292141,9.559e-05,2]
[420483972,1776145845265,-800.0,9.562e-05,2]
[420483973,1776145845285,-800.0,9.587e-05,2]
[420483974,1776145845300,-455.6259834,9.605e-05,2]
[420483975,1776145845312,-800.0,9.616e-05,2]
[420483976,1776145845330,-800.0,9.623e-05,2]
[420483977,1776145845357,-1793.040233,9.641e-05,2]
[420483978,1776145845367,-402.75076399,9.644e-05,2]
[420483979,1776145845377,-800.0,9.654e-05,2]
[420483980,1776145845390,-800.0,9.668e-05,2]
[420483981,1776145845400,-193.043183,9.676e-05,2]
[420483982,1776145845415,-193.043183,9.676e-05,2]
[420483983,1776145845427,-193.043183,9.676e-05,2]
[420483984,1776145845443,-193.043183,9.676e-05,2]
[420483985,1776145845453,-800.0,9.693e-05,2]
[420483986,1776145845462,-986.0,9.7e-05,2]
[420483987,1776145845486,-800.0,9.727e-05,2]
[420483988,1776145845511,-720.0,9.736e-05,2]
[420483989,1776145845524,-162.380719,9.941e-05,2]
[420483990,1776145845536,-549.0,9.944e-05,2]
[420483991,1776145845560,-262.31007143,9.973e-05,2]
[420483992,1776145845570,-505.21007576,9.973e-05,2]
[420483993,1776145845588,-1793.040233,9.989e-05,2]
[420483994,1776145845604,-422.73368856,0.0001,2]
[420483995,1776145845619,-204977.45250783,0.0001,2]
[420483996,1776145845635,-999.64040625,0.0001,2]
[420483997,1776145845645,-316.65382715,0.0001,2]
[420483998,1776145845655,-544.87795241,0.0001,2]
[420483999,1776145845665,-16179.0444,0.0001,2]
[420484000,1776145845682,-275.94689231,0.0001,2]
[420484001,1776145845692,-292.32420885,0.0001,2]
[420484002,1776145845702,-501.0,0.0001,2]
[420484003,1776145845715,-193.043183,0.0001,2]
[420484004,1776145845882,-193.043183,0.0001,2]
[420484007,1776145845914,-193.043183,0.0001,2]
[420484010,1776145845975,-193.043183,0.0001,2]
[420484012,1776145846006,-402.75076399,0.0001,2]
[420484015,1776145846032,-1408.0,0.00010006,2]
[420484016,1776145846045,-2208.0,0.00010006,2]
[420484017,1776145846061,-738.707,0.00010006,2]
[420484018,1776145846098,-441.0,0.00010006,2]
[420484019,1776145846120,-2401.81926534,0.00010066,2]
[420484020,1776145846138,-150.0,0.00010433,2]
[420484021,1776145846148,-173.8711504,0.00010434,2]
[420484022,1776145846159,-173.8711502,0.00010434,2]
[420484023,1776145846169,-151.0,0.00010502,2]
[420484024,1776145846179,-5059.54626913,0.0001053,2]
[420484025,1776145846191,-151.0,0.00010619,2]
[420484026,1776145846201,-165.09,0.00010685,2]
[420484027,1776145846211,-500.0,0.00010685,2]
[420484028,1776145846224,-864.0,0.00010709,2]
[420484029,1776145846233,-151.0,0.00010726,2]
[420484030,1776145846243,-164.46841824,0.00010891,5]
[420484031,1776145846255,-892.6882,0.00010958,2]
[420484032,1776145846265,-7722.158193,0.00010958,2]
[420484033,1776145846276,-325.726202,0.00010958,2]
[420484034,1776145846287,-500.0,0.00010958,2]
[420484035,1776145846299,-500.0,0.00010958,2]
[420484036,1776145846319,-509.07237066,0.00010958,2]
[420484037,1776145846330,-293.33632236,0.00010958,2]
[420484039,1776145846346,-438.90173403,0.00010958,2]
[420484040,1776145846363,-510.02515683,0.00010958,2]
[420484041,1776145846395,-500.0,0.00010958,2]
[420484042,1776145846404,-508.18434528,0.00010958,2]
[420484043,1776145846429,-500.0,0.00010958,2]
[420484044,1776145846440,-511.50180125,0.00010958,2]
[420484045,1776145846451,-509.46208841,0.00010958,2]
[420484046,1776145846480,-500.0,0.00010958,2]
[420484047,1776145846490,-515.01916637,0.00010958,2]
[420484048,1776145846510,-500.0,0.00010958,2]
[420484049,1776145846524,-500.0,0.00010958,2]
[420484050,1776145846534,-500.0,0.00010958,2]
[420484051,1776145846549,-500.0,0.00010958,2]
[420484052,1776145846566,-500.0,0.00010958,2]
[420484053,1776145846578,-1000.0,0.00010958,2]
[420484054,1776145846592,-513.43497856,0.00010958,2]
[420484055,1776145846627,-512.68036392,0.00010958,2]
[420484056,1776145846658,-508.4686584,0.00010958,2]
[420484057,1776145846670,-511.32418731,0.00010958,2]
[420484058,1776145846696,-500.0,0.00010958,2]
[420484059,1776145846713,-506.51713577,0.00010958,2]
[420484060,1776145846734,-500.0,0.00010958,2]
[420484061,1776145846755,-212.24374745,0.00010958,2]
[420484062,1776145846776,-500.0,0.00010958,2]
[420484063,1776145846793,-500.0,0.00010958,2]
[420484064,1776145846804,-507.52382897,0.00010958,2]
[420484065,1776145846815,-507.09002715,0.00010958,2]
[420484066,1776145846834,-510.88588644,0.00010958,2]
[420484067,1776145846849,-500.0,0.00010958,2]
[420484068,1776145846862,-500.0,0.00010958,2]
[420484069,1776145846875,-500.0,0.00010958,2]
[420484070,1776145846898,-500.0,0.00010958,2]
[420484071,1776145846909,-495.0,0.00010958,2]
[420484072,1776145846934,-510.76596536,0.00010958,2]
[420484073,1776145846977,-500.0,0.00010958,2]
[420484074,1776145846997,-500.0,0.00010958,2]
[420484075,1776145847033,-579.23175847,0.00010958,2]
[420484076,1776145847043,-500.0,0.00010958,2]
[420484077,1776145847057,-500.0,0.00010958,2]
[420484078,1776145847070,-510.62618169,0.00010958,2]
[420484079,1776145847087,-500.0,0.00010958,2]
[420484080,1776145847122,-500.0,0.00010958,2]
[420484081,1776145847137,-500.0,0.00010958,2]
[420484083,1776145847146,-500.0,0.00010958,2]
[420484084,1776145847174,-500.0,0.00010958,2]
[420484085,1776145847183,-500.0,0.00010958,2]
[420484086,1776145847203,-500.0,0.00010958,2]
[420484087,1776145847214,-514.72009739,0.00010958,2]
[420484088,1776145847223,-500.0,0.00010958,2]
[420484089,1776145847233,-512.28048599,0.00010958,2]
[420484090,1776145847249,-154.24149742,0.00010958,2]
[420484091,1776145847261,-500.0,0.00010958,2]
[420484092,1776145847270,-500.0,0.00010958,2]
[420484093,1776145847281,-500.0,0.00010958,2]
[420484094,1776145847298,-500.0,0.00010958,2]
[420484095,1776145847312,-500.0,0.00010958,2]
[420484096,1776145847324,-506.44732441,0.00010958,2]
[420484097,1776145847352,-500.0,0.00010958,2]
[420484098,1776145847361,-500.0,0.00010958,2]
[420484099,1776145847372,-279.57340015,0.00010958,2]
[420484100,1776145847391,-525.41434279,0.00010958,2]
[420484101,1776145847401,-644.90252124,0.00010958,2]
[420484102,1776145847410,-574.42624683,0.00010958,2]
[420484103,1776145847449,-512.02381191,0.00010958,2]
[420484105,1776145847458,-500.0,0.00010958,2]
[420484106,1776145847481,-500.0,0.00010958,2]
[420484107,1776145847492,-637.06270424,0.00010958,2]
[420484108,1776145847502,-500.0,0.00010958,2]
[420484109,1776145847528,-500.0,0.00010958,2]
[420484110,1776145847541,-513.07205727,0.00010958,2]
[420484111,1776145847561,-516.06578059,0.00010958,2]
[420484112,1776145847592,-515.38562141,0.00010958,2]
[420484113,1776145847617,-510.34429003,0.00010958,2]
[420484114,1776145847629,-500.0,0.00010958,2]
[420484115,1776145847640,-538.05571113,0.00010958,2]
[420484116,1776145847660,-500.0,0.00010958,2]
[420484117,1776145847674,-500.0,0.00010958,2]
[420484118,1776145847684,-520.50303241,0.00010958,2]
[420484119,1776145847708,-500.0,0.00010958,2]
[420484120,1776145847718,-500.0,0.00010958,2]
[420484121,1776145847731,-502.34380155,0.00010958,2]
[420484122,1776145847750,-193.043183,0.00010958,2]
[420484123,1776145847760,-193.043183,0.00010958,2]
[420484124,1776145847771,-193.043183,0.00010958,2]
[420484125,1776145847798,-500.0,0.00010958,2]
[420484126,1776145847808,-193.043183,0.00010958,2]
[420484127,1776145847826,-193.043183,0.00010958,2]
[420484128,1776145847835,-517.1238211,0.00010958,2]
[420484129,1776145847845,-193.043183,0.00010958,2]
[420484130,1776145847859,-193.043183,0.00010958,2]
[420484131,1776145847870,-193.043183,0.00010958,2]
[420484133,1776145847880,-193.043183,0.00010958,2]
[420484134,1776145847889,-193.043183,0.00010958,2]
[420484135,1776145847901,-193.043183,0.00010958,2]
[420484136,1776145847911,-193.043191,0.00010958,2]
[420484137,1776145847921,-500.0,0.00010958,2]
[420484138,1776145847931,-500.0,0.00010958,2]
[420484139,1776145847945,-500.0,0.00010958,2]
[420484140,1776145847957,-523.66701131,0.00010958,2]
[420484141,1776145847971,-514.59999694,0.00010958,2]
[420484142,1776145847983,-311.18403785,0.00010958,2]
[420484143,1776145847994,-500.0,0.00010958,2]
[420484144,1776145848005,-500.0,0.00010958,2]
[420484145,1776145848017,-500.0,0.00010958,2]
[420484146,1776145848030,-569.39164931,0.00010958,2]
[420484147,1776145848040,-377.58984771,0.00010958,2]
[420484148,1776145848051,-500.0,0.00010958,2]
[420484149,1776145848064,-500.0,0.00010958,2]
[420484150,1776145848079,-500.0,0.00010958,2]
[420484151,1776145848099,-508.56779568,0.00010958,2]
[420484152,1776145848115,-500.0,0.00010958,2]
[420484153,1776145848125,-500.0,0.00010958,2]
[420484154,1776145848153,-523.3301477,0.00010958,2]
[420484155,1776145848165,-509.40792716,0.00010958,2]
[420484156,1776145848200,-500.0,0.00010958,2]
[420484157,1776145848210,-511.82714089,0.00010958,2]
[420484158,1776145848224,-500.0,0.00010958,2]
[420484159,1776145848248,-500.0,0.00010958,2]
[420484160,1776145848262,-500.0,0.00010958,2]
[420484161,1776145848274,-509.87319928,0.00010958,2]
[420484162,1776145848297,-500.0,0.00010958,2]
[420484163,1776145848311,-500.0,0.00010958,2]
[420484164,1776145848323,-500.0,0.00010958,2]
[420484165,1776145848342,-502.72143745,0.00010958,2]
[420484166,1776145848353,-500.0,0.00010958,2]
[420484167,1776145848367,-179.45567123,0.00010958,2]
[420484168,1776145848383,-512.47399159,0.00010958,2]
[420484169,1776145848395,-513.2784367,0.00010958,2]
[420484170,1776145848411,-500.0,0.00010958,2]
[420484171,1776145848421,-500.0,0.00010958,2]
[420484172,1776145848446,-500.0,0.00010958,2]
[420484173,1776145848457,-500.0,0.00010958,2]
[420484174,1776145848472,-509.94184347,0.00010958,2]
[420484175,1776145848490,-500.0,0.00010958,2]
[420484176,1776145848502,-511.03255818,0.00010958,2]
[420484177,1776145848516,-505.61155651,0.00010958,2]
[420484178,1776145848535,-13076.19,0.00010958,2]
[420484179,1776145848559,-500.0,0.00010958,2]
[420484180,1776145848575,-500.0,0.00010958,2]
[420484181,1776145848592,-513.63823939,0.00010958,2]
[420484182,1776145848603,-500.0,0.00010958,2]
[420484183,1776145848613,-525.41228263,0.00010958,2]
[420484184,1776145848623,-500.0,0.00010958,2]
[420484185,1776145848640,-500.0,0.00010958,2]
[420484186,1776145848652,-16516.25,0.00010958,2]
[420484187,1776145848665,-500.0,0.00010958,2]
[420484188,1776145848680,-500.0,0.00010958,2]
[420484189,1776145848690,-503.81846972,0.00010958,2]
[420484190,1776145848700,-500.0,0.00010958,2]
[420484191,1776145848717,-500.0,0.00010958,2]
[420484192,1776145848729,-505.59179091,0.00010958,2]
[420484193,1776145848739,-500.0,0.00010958,2]
[420484194,1776145848750,-592.07674501,0.00010958,2]
[420484195,1776145848767,-500.0,0.00010958,2]
[420484196,1776145848781,-14984.19,0.00010958,2]
[420484197,1776145848795,-500.0,0.00010958,2]
[420484198,1776145848808,-504.59156055,0.00010958,2]
[420484199,1776145848821,-500.0,0.00010958,2]
[420484200,1776145848838,-500.0,0.00010958,2]
[420484201,1776145848851,-587.12199284,0.00010958,2]
[420484202,1776145848877,-500.0,0.00010958,2]
[420484203,1776145848935,-623.33131188,0.00010958,2]
[420484204,1776145849023,-593.84449663,0.00010958,2]
[420484205,1776145849048,-515.2409696,0.00010958,2]
[420484206,1776145849057,-500.0,0.00010958,2]
[420484207,1776145849082,-500.0,0.00010958,2]
[420484208,1776145849107,-521.3371056,0.00010958,2]
[420484209,1776145849118,-500.0,0.00010958,2]
[420484210,1776145849127,-805.25,0.00010958,2]
[420484211,1776145849146,-500.0,0.00010958,2]
[420484212,1776145849157,-331.46296427,0.00010958,2]
[420484213,1776145849167,-208.20774354,0.00010958,2]
[420484214,1776145849181,-391.92149734,0.00010958,2]
[420484215,1776145849191,-575.54194918,0.00010958,2]
[420484216,1776145849201,-500.0,0.00010958,2]
[420484217,1776145849211,-500.0,0.00010958,2]
[420484218,1776145849223,-500.0,0.00010958,2]
[420484219,1776145849233,-10290.65,0.00010958,2]
[420484220,1776145849246,-509.36558812,0.00010958,2]
[420484221,1776145849256,-500.0,0.00010958,2]
[420484222,1776145849275,-57919.58,0.00010958,2]
[420484223,1776145849286,-500.0,0.00010958,2]
[420484224,1776145849311,-500.0,0.00010958,2]
[420484225,1776145849322,-500.0,0.00010958,2]
[420484226,1776145849332,-500.0,0.00010958,2]
[420484227,1776145849360,-500.0,0.00010958,2]
[420484228,1776145849369,-519.70800883,0.00010958,2]
[420484229,1776145849400,-17131.78,0.00010958,2]
[420484230,1776145849411,-11390.94,0.00010958,2]
[420484231,1776145849420,-510.08984355,0.00010958,2]
[420484232,1776145849449,-500.0,0.00010958,2]
[420484233,1776145849461,-500.0,0.00010958,2]
[420484234,1776145849471,-500.0,0.00010958,2]
[420484235,1776145849497,-10601.81,0.00010958,2]
[420484236,1776145849511,-500.0,0.00010958,2]
[420484237,1776145849523,-510.46588361,0.00010958,2]
[420484238,1776145849547,-502.43493203,0.00010958,2]
[420484239,1776145849558,-500.0,0.00010958,2]
[420484240,1776145849576,-17947.78,0.00010958,2]
[420484241,1776145849586,-500.0,0.00010958,2]
[420484242,1776145849597,-15129.51,0.00010958,2]
[420484243,1776145849610,-505.61064153,0.00010958,2]
[420484244,1776145849629,-503.40271761,0.00010958,2]
[420484245,1776145849641,-500.0,0.00010958,2]
[420484246,1776145849651,-30042.87,0.00010958,2]
[420484247,1776145849661,-500.0,0.00010958,2]
[420484248,1776145849679,-510.41764111,0.00010958,2]
[420484249,1776145849689,-500.0,0.00010958,2]
[420484250,1776145849698,-516.05122725,0.00010958,2]
[420484251,1776145849708,-500.0,0.00010958,2]
[420484252,1776145849748,-10911.51,0.00010958,2]
[420484253,1776145849797,-23543.85,0.00010958,2]
[420484254,1776145849845,-500.0,0.00010958,2]
[420484255,1776145849858,-17488.66,0.00010958,2]
[420484256,1776145849889,-500.0,0.00010958,2]
[420484257,1776145849902,-509.01354719,0.00010958,2]